bitfinex/quotes_ETHUSD_20220212
["timestamp","ask_amount","ask_price","bid_price","bid_amount"]
[1644674846567,3.54783737,2904.5,2903.9,0.00895107]
[1644674846867,3.54783737,2904.5,2903.2,0.17472966]
[1644674847165,3.54783737,2904.5,2903.6,0.03580779]
[1644674847971,3.54783737,2904.5,2903.4,0.00262966]
[1644674848167,0.1721,2904.4,2903.4,0.00262966]
[1644674848367,2.03617731,2904.3,2903.9,0.00895107]
[1644674848573,5.43713182,2904.2,2903.9,0.00895107]
[1644674848769,1.46580576,2904.1,2903.9,0.00895107]
[1644674848968,3.84463521,2904.0,2903.9,0.00895107]
[1644674849169,5.31044097,2904.0,2903.9,0.00895107]
[1644674849372,5.31044097,2904.0,2903.4,0.00262966]
[1644674849373,3.84463521,2904.0,2903.4,0.00262966]
[1644674849568,0.1721,2904.0,2903.5,0.0330317]
[1644674849809,0.1721,2904.1,2903.5,0.0330317]
[1644674850208,0.1721,2904.1,2902.9,0.1731]
[1644674850209,4.2159758,2904.0,2902.9,0.001]
[1644674850411,3.99275217,2903.9,2902.9,0.001]
[1644674850614,0.3,2903.9,2902.9,0.001]
[1644674850809,1.63818272,2903.8,2903.7,0.0082574]
[1644674851009,0.1721,2903.8,2903.7,0.0082574]
[1644674851407,4.37924233,2903.8,2903.7,0.0082574]
[1644674851608,4.37924233,2903.8,2902.8,0.001]
[1644674851807,4.67924233,2903.8,2902.8,0.001]
[1644674852007,1.06515783,2903.8,2902.6,0.13982479]
[1644674853007,3.48226351,2903.7,2903.1,0.00249648]
[1644674853214,0.81515783,2903.8,2903.1,0.00249648]
[1644674853954,0.81515783,2903.8,2902.7,0.54305027]
[1644674854153,0.64305783,2903.8,2903.2,0.55002102]
[1644674854452,0.00882737,2903.6,2903.3,0.0082383]
[1644674855358,0.1721,2903.6,2903.0,0.02684407]
[1644674855557,0.18092737,2903.6,2903.3,0.0082383]
[1644674855868,0.71687672,2903.6,2903.3,0.0082383]
[1644674856462,3.7797042,2903.5,2903.0,0.02684407]
[1644674856657,3.7797042,2903.5,2903.3,0.00248014]
[1644674856859,3.6076042,2903.5,2903.3,0.00248014]
[1644674857057,0.1721,2903.5,2903.3,0.00248014]
[1644674857705,0.1721,2903.5,2903.0,0.02684407]
[1644674857909,0.65674806,2903.1,2903.0,0.02684407]
[1644674858515,3.3,2903.0,2901.3,7.71]
[1644674858711,0.65674806,2903.1,2901.1,0.491]
[1644674858712,11.2665697,2902.9,2901.1,0.491]
[1644674858911,11.2665697,2902.9,2900.5,1.137]
[1644674858912,0.25,2902.5,2900.5,1.137]
[1644674859109,0.1723,2902.4,2900.6,3.9561]
[1644674859311,0.1723,2902.4,2901.4,0.59997858]
[1644674859508,1.96858898,2902.5,2901.5,0.1723]
[1644674859509,0.24452898,2902.5,2901.5,0.1723]
[1644674860113,3.5,2902.8,2901.5,0.1723]
[1644674860314,0.58308585,2902.6,2901.9,0.0025049]
[1644674860714,0.1721,2902.5,2901.9,0.0025049]
[1644674861157,0.58308585,2902.6,2901.9,0.0025049]
[1644674861352,0.58308585,2902.6,2901.5,0.1721]
[1644674861552,0.58308585,2902.6,2902.1,0.00250473]
[1644674862560,0.58308585,2902.6,2901.5,0.1721]
[1644674862762,0.58308585,2902.6,2902.2,0.00826625]
[1644674863767,0.58308585,2902.6,2901.5,0.1721]
[1644674864061,0.58308585,2902.6,2902.3,0.00914938]
[1644674864906,0.58308585,2902.6,2901.5,0.1721]
[1644674865108,0.75518585,2902.6,2902.3,0.00914934]
[1644674865307,0.01281706,2902.1,2901.7,0.0366046]
[1644674866109,0.01281706,2902.1,2901.6,0.00260577]
[1644674867309,0.54042759,2902.1,2901.6,0.00260577]
[1644674867508,0.54042759,2902.1,2901.1,1.1552]
[1644674867509,0.54042759,2902.1,2901.7,0.00239124]
[1644674868108,0.01281706,2902.1,2901.7,0.00239124]
[1644674868560,0.01281706,2902.1,2901.2,0.00260577]
[1644674868761,0.01281706,2902.1,2901.8,0.0023912]
[1644674869765,0.01281706,2902.1,2901.6,0.00260577]
[1644674869965,0.01281706,2902.1,2901.8,0.00794764]
[1644674870966,0.01281706,2902.1,2901.6,0.00260577]
[1644674871169,0.01281706,2902.1,2901.8,0.00872667]
[1644674871571,0.01281706,2902.1,2901.9,0.55822393]
[1644674871766,0.01281706,2902.1,2901.9,0.55902737]
[1644674872210,0.01281706,2902.1,2901.9,0.00080344]
[1644674873310,0.01281706,2902.1,2901.9,0.67594792]
[1644674873511,0.01281706,2902.1,2901.9,0.00952996]
[1644674874511,0.01281706,2902.1,2901.9,0.00080344]
[1644674874711,0.01281706,2902.1,2901.9,0.59345275]
[1644674875414,0.01281706,2902.1,2901.9,0.00879093]
[1644674875815,0.01281706,2902.1,2901.9,0.00080344]
[1644674876476,0.01281706,2902.1,2901.9,0.63559134]
[1644674876877,0.01281706,2902.1,2901.9,0.00080344]
[1644674878377,0.01281706,2902.1,2901.9,0.01011729]
[1644674879190,0.1721,2902.0,2901.9,0.01011729]
[1644674879384,0.1721,2902.0,2901.9,0.00080344]
[1644674879583,0.1721,2902.0,2901.9,0.01011729]
[1644674879812,0.87290123,2902.0,2901.9,0.01011729]
[1644674880011,4.56808621,2902.0,2901.9,0.01011729]
[1644674880510,4.56808621,2902.0,2901.9,0.00080344]
[1644674880912,1.17290123,2902.0,2901.9,0.00080344]
[1644674881116,1.17290123,2902.0,2901.4,0.03726121]
[1644674881117,3.3,2901.9,2901.4,0.03726121]
[1644674881315,3.3,2901.7,2900.7,0.00260577]
[1644674881512,0.55648054,2900.7,2900.5,0.00260577]
[1644674881718,0.55648054,2900.7,2900.2,0.00260577]
[1644674881912,0.55648054,2900.7,2899.9,0.00260577]
[1644674882116,0.55648054,2900.7,2900.0,0.1723]
[1644674883113,0.55648054,2900.7,2900.2,0.00290446]
[1644674883763,3.45478723,2900.6,2900.2,0.00290446]
[1644674883965,0.55648054,2900.7,2900.2,0.00290446]
[1644674884165,0.55648054,2900.7,2900.1,0.00260577]
[1644674884369,3.48821243,2900.6,2900.3,0.00290436]
[1644674884567,0.55648054,2900.7,2900.3,0.00290436]
[1644674884764,3.45558823,2900.6,2900.3,0.00290436]
[1644674884964,0.55648054,2900.7,2900.3,0.00290436]
[1644674885364,0.55648054,2900.7,2900.1,0.00260577]
[1644674885568,0.55648054,2900.7,2900.3,0.00932321]
[1644674885765,0.25,2900.8,2900.3,0.00932321]
[1644674886566,0.25,2900.8,2899.6,0.00260577]
[1644674886765,0.25,2900.8,2900.4,0.00932312]
[1644674887203,3.88615285,2900.8,2900.4,0.00932312]
[1644674887404,0.4223,2900.8,2900.4,0.00932312]
[1644674887805,0.4223,2900.8,2900.1,0.00260577]
[1644674888004,3.88080151,2900.8,2900.5,0.00932307]
[1644674888205,0.4223,2900.8,2900.5,0.00932307]
[1644674888405,3.70701648,2900.8,2900.5,0.00932307]
[1644674888616,3.70701648,2900.8,2900.0,0.03729786]
[1644674888617,0.88535998,2900.4,2900.0,0.03729786]
[1644674888817,6.9724,2900.3,2899.4,0.00260577]
[1644674889013,0.50306686,2899.6,2898.7,0.65537366]
[1644674889210,3.25,2900.1,2898.7,0.61691163]
[1644674889411,0.1724,2900.0,2898.7,0.61691163]
[1644674889617,0.02271998,2900.4,2898.9,5.0]
[1644674889816,0.02271998,2900.4,2898.7,0.61691163]
[1644674889817,0.02271998,2900.4,2899.3,5.0]
[1644674890013,0.02271998,2900.4,2898.7,0.83661163]
[1644674890014,0.02271998,2900.4,2899.5,5.0]
[1644674890211,0.02271998,2900.4,2899.6,0.491]
[1644674890411,0.02271998,2900.4,2899.7,0.1724]
[1644674890615,0.02271998,2900.4,2899.8,0.491]
[1644674890810,0.02271998,2900.4,2899.8,0.791]
[1644674891063,0.02271998,2900.4,2899.8,1.091]
[1644674891285,0.02271998,2900.4,2899.9,5.1724]
[1644674891472,0.02271998,2900.4,2900.0,0.491]
[1644674891661,0.02271998,2900.4,2900.1,0.1724]
[1644674891861,0.02271998,2900.4,2900.1,0.4724]
[1644674892063,0.02271998,2900.4,2900.2,0.491]
[1644674892267,3.5,2901.5,2900.4,3.25]
[1644674892462,0.1723,2901.7,2900.5,0.6633]
[1644674892664,0.1723,2901.8,2900.5,1.6633]
[1644674892867,1.46705653,2901.7,2900.5,1.6633]
[1644674893067,0.1723,2901.6,2900.5,1.6633]
[1644674893268,0.55796051,2901.6,2900.8,0.69124076]
[1644674894067,0.00932955,2901.2,2900.8,0.69124076]
[1644674894470,0.00932955,2901.2,2900.5,1.6633]
[1644674894716,0.00932955,2901.2,2900.5,0.6633]
[1644674894924,0.1723,2902.0,2900.5,0.6633]
[1644674895117,1.46699833,2901.9,2900.6,5.0]
[1644674895319,1.12485706,2902.1,2900.8,5.0]
[1644674895320,0.00932959,2901.1,2900.8,5.0]
[1644674895516,0.00932959,2901.1,2900.9,3.70724496]
[1644674895716,0.00932959,2901.1,2900.9,5.49824496]
[1644674895918,0.00932959,2901.1,2901.0,4.22492788]
[1644674896116,0.00932959,2901.1,2901.0,5.01592788]
[1644674896317,0.01281706,2902.1,2901.0,1.04641222]
[1644674896520,0.00932959,2901.1,2901.0,1.21871222]
[1644674897416,0.26281706,2902.1,2901.0,1.21871222]
[1644674897621,0.00932955,2901.2,2901.0,1.21871222]
[1644674898671,0.26281706,2902.1,2901.0,1.21871222]
[1644674898876,0.0093295,2901.2,2901.0,1.21871222]
[1644674899678,0.0093295,2901.2,2901.0,1.04641222]
[1644674899875,0.1723,2902.0,2901.0,1.04641222]
[1644674900077,0.0093295,2901.2,2901.0,0.55541222]
[1644674900487,0.0093295,2901.2,2900.5,0.3]
[1644674900675,0.0093295,2901.2,2900.4,7.831]
[1644674900676,0.0093295,2901.2,2900.6,0.1723]
[1644674900877,0.0093295,2901.2,2900.5,0.1723]
[1644674901076,0.25,2901.3,2900.4,3.7231]
[1644674901276,0.0093295,2901.2,2900.4,3.7231]
[1644674901476,0.0093295,2901.2,2900.6,0.57853524]
[1644674902312,0.25,2901.3,2900.6,0.57853524]
[1644674902512,0.00932969,2901.0,2900.6,0.57853524]
[1644674903316,0.00932969,2901.0,2900.4,3.7231]
[1644674903523,0.9686,2901.3,2900.3,0.04075779]
[1644674903718,0.00932979,2900.9,2900.3,0.04075779]
[1644674904321,0.00932979,2900.9,2900.7,0.6080642]
[1644674904521,0.1723,2901.2,2900.7,0.6080642]
[1644674904722,1.03461,2901.2,2900.3,0.04335798]
[1644674904922,0.00932998,2900.7,2900.3,0.04335798]
[1644674905623,0.00932998,2900.7,2900.3,0.6119526]
[1644674905821,1.71299769,2901.2,2900.3,0.6119526]
[1644674906061,0.00649762,2900.6,2900.3,0.6119526]
[1644674906260,0.00649762,2900.6,2900.3,0.60935241]
[1644674907066,0.1723,2901.2,2900.3,0.60935241]
[1644674907267,0.009325,2900.6,2900.4,0.00260019]
[1644674907468,0.009325,2900.6,2900.1,0.00260019]
[1644674908075,0.009325,2900.6,2899.9,0.00932718]
[1644674908274,0.1723,2900.5,2899.5,0.00260019]
[1644674908467,0.0093251,2900.5,2899.9,0.55623565]
[1644674908667,0.0093251,2900.5,2899.9,0.55883584]
[1644674909266,0.0093251,2900.5,2899.9,0.01192715]
[1644674909467,0.1724,2900.6,2899.6,0.00260019]
[1644674909709,0.00649762,2900.3,2899.6,0.00260019]
[1644674910311,0.00649762,2900.3,2899.7,0.65990004]
[1644674910511,0.00649762,2900.3,2899.7,0.66250023]
[1644674910719,0.1724,2900.6,2899.7,0.66250023]
[1644674910912,0.00649728,2900.2,2899.8,0.00260019]
[1644674911112,0.00649728,2900.2,2899.7,0.65990004]
[1644674911913,3.77491046,2900.6,2899.7,0.66070032]
[1644674912113,0.00932288,2900.2,2899.8,0.01192449]
[1644674913115,0.1724,2900.6,2899.8,0.00260019]
[1644674913320,0.1724,2900.6,2899.9,0.00932425]
[1644674913321,0.009323,2900.2,2899.9,0.00932425]
[1644674914159,0.1724,2900.6,2899.8,0.00260019]
[1644674914359,0.1724,2900.6,2899.7,0.66070032]
[1644674914561,0.00932311,2900.2,2899.9,0.0093242]
[1644674915567,0.00932317,2900.3,2899.9,0.00932439]
[1644674916574,0.1724,2900.6,2899.8,0.00260019]
[1644674916773,0.1724,2900.6,2899.9,0.00932427]
[1644674916973,0.00932322,2900.2,2899.9,0.00932427]
[1644674917828,0.1724,2900.6,2899.8,0.00260019]
[1644674918026,0.25,2900.7,2899.9,0.5003242]
[1644674918027,0.00932311,2900.2,2899.9,0.5003242]
[1644674919030,0.1723,2901.1,2899.9,0.491]
[1644674919232,0.00649738,2900.3,2900.0,0.00260019]
[1644674919434,0.00649738,2900.3,2900.0,0.491]
[1644674920232,0.1723,2901.1,2900.0,0.491]
[1644674920536,0.00932316,2900.3,2900.1,0.00260019]
[1644674920734,0.00932316,2900.3,2899.9,0.01192454]
[1644674921171,0.00932316,2900.3,2899.9,0.00932435]
[1644674921565,3.28675,2901.2,2900.1,0.65886681]
[1644674921867,3.28675,2901.2,2900.2,0.00260019]
[1644674921868,0.00932305,2900.3,2900.2,0.00260019]
[1644674922066,0.00932305,2900.3,2900.1,0.65886681]
[1644674922767,0.4224,2901.2,2900.1,0.65886681]
[1644674922967,0.00932312,2900.3,2900.1,0.65886681]
[1644674923177,0.00932312,2900.3,2900.2,0.00259346]
[1644674923370,0.00932312,2900.3,2899.9,0.00932446]
[1644674923771,0.64567618,2900.8,2899.8,0.00259346]
[1644674923967,0.1724,2900.9,2899.8,0.00259346]
[1644674924168,0.00932307,2900.4,2899.9,0.00932458]
[1644674924817,0.00932307,2900.4,2900.0,0.1724]
[1644674925113,1.45,2901.2,2900.1,0.64214621]
[1644674925311,1.45,2901.2,2900.1,0.64473967]
[1644674925312,0.00932316,2900.3,2900.1,0.64473967]
[1644674925514,0.00932316,2900.3,2900.2,0.00259346]
[1644674925714,0.00932316,2900.3,2900.1,0.64214621]
[1644674926320,1.45,2901.2,2900.1,0.64214621]
[1644674926516,0.00932307,2900.4,2900.2,0.00259346]
[1644674926715,0.00932307,2900.4,2900.1,0.64214621]
[1644674927515,1.6223,2901.2,2900.1,0.64214621]
[1644674927715,2.62964321,2901.1,2900.2,0.00259346]
[1644674927916,1.46730321,2901.0,2900.2,0.00259346]
[1644674930164,0.00928334,2900.7,2900.2,0.00259346]
[1644674931067,1.45,2901.2,2900.2,3.51227534]
[1644674931267,0.00928349,2900.6,2900.3,0.00259346]
[1644674931471,0.00928349,2900.6,2900.2,0.1723]
[1644674931864,0.00928349,2900.6,2900.3,0.491]
[1644674932069,0.00928349,2900.6,2900.4,0.1723]
[1644674932314,0.25,2901.2,2900.4,0.1723]
[1644674932515,1.1694,2901.6,2900.9,0.60596159]
[1644674932516,1.4671863,2901.1,2900.9,0.60596159]
[1644674932721,0.1723,2901.5,2900.9,0.60596159]
[1644674933017,0.64058166,2901.9,2900.9,0.60596159]
[1644674933018,0.81288166,2901.9,2900.9,0.60596159]
[1644674933619,0.00928276,2901.3,2900.9,0.60596159]
[1644674934519,0.00928276,2901.3,2900.9,1.09696159]
[1644674934818,0.90339872,2902.1,2900.9,1.09696159]
[1644674935016,0.00928285,2901.2,2900.9,1.09696159]
[1644674935975,0.81288166,2902.0,2900.9,1.09696159]
[1644674936165,0.00645747,2901.2,2900.9,1.09696159]
[1644674936777,0.00645747,2901.2,2900.9,0.491]
[1644674936980,0.00645747,2901.2,2901.1,5.0]
[1644674936981,5.747e-05,2901.2,2901.1,5.0]
[1644674937277,1.49469054,2902.7,2901.2,3.25]
[1644674937474,0.25,2902.4,2901.3,0.491]
[1644674937773,0.96049071,2902.4,2901.5,0.68267397]
[1644674937971,0.96049071,2902.4,2901.6,0.491]
[1644674938180,0.25,2902.4,2901.6,0.491]
[1644674938377,0.25,2902.4,2901.7,0.1721]
[1644674938574,0.00624144,2902.0,2901.7,0.1721]
[1644674938778,0.00624144,2902.0,2901.8,0.491]
[1644674938976,0.00624144,2902.0,2901.9,0.1723]
[1644674939178,0.00624144,2902.0,2901.9,0.491]
[1644674939487,0.85410888,2903.4,2901.9,4.41180956]
[1644674939488,0.1721,2903.3,2901.9,4.41180956]
[1644674939722,0.03623082,2903.1,2902.0,0.1721]
[1644674939921,0.03623082,2903.1,2902.1,0.491]
[1644674940122,0.03623082,2903.1,2902.2,4.01362421]
[1644674940325,0.03623082,2903.1,2902.4,0.70329026]
[1644674940522,0.03623082,2903.1,2902.5,4.15818913]
[1644674940724,0.1721,2903.4,2902.5,0.491]
[1644674940924,0.00906016,2902.8,2902.5,0.491]
[1644674941924,0.1721,2903.3,2902.5,0.491]
[1644674942131,0.00867538,2902.8,2902.5,0.491]
[1644674942324,0.00867538,2902.8,2902.0,7.52040054]
[1644674942325,0.72813707,2902.4,2902.0,7.52040054]
[1644674942525,0.72813707,2902.4,2902.1,0.6631]
[1644674942725,0.72813707,2902.4,2902.2,0.491]
[1644674942926,0.72813707,2902.4,2902.1,0.491]
[1644674943126,0.72813707,2902.4,2902.0,0.1721]
[1644674943325,0.72813707,2902.4,2902.1,0.491]
[1644674943566,0.73681284,2902.4,2902.1,0.491]
[1644674944366,0.72813707,2902.4,2902.1,0.491]
[1644674944568,0.73681284,2902.4,2902.1,0.491]
[1644674945571,0.72813707,2902.4,2902.1,0.491]
[1644674945772,0.73679314,2902.4,2902.1,0.491]
[1644674946772,0.72813707,2902.4,2902.1,0.491]
[1644674946973,0.73679314,2902.4,2902.1,0.491]
[1644674948011,0.72813707,2902.4,2902.1,0.491]
[1644674948210,0.73627402,2902.4,2902.1,0.491]
[1644674948920,0.73627402,2902.4,2901.7,0.491]
[1644674949219,0.72813707,2902.4,2901.4,0.1721]
[1644674949412,0.73627533,2902.4,2901.4,0.1721]
[1644674950023,0.1723,2902.3,2901.5,0.51460294]
[1644674950218,1.34848839,2902.4,2901.5,0.51460294]
[1644674950419,1.34035013,2902.4,2901.5,0.51460294]
[1644674950619,0.00813854,2902.0,2901.5,0.51460294]
[1644674951267,0.00813854,2902.0,2901.4,0.1721]
[1644674951471,1.34035013,2902.4,2901.4,0.1721]
[1644674951867,0.00818849,2902.1,2901.3,4.99172479]
[1644674952267,0.00818849,2902.1,2901.3,1.31332479]
[1644674952671,0.1723,2902.3,2901.3,1.96381046]
[1644674952874,0.1723,2902.3,2901.3,1.96236572]
[1644674953068,0.00820594,2901.8,2901.3,1.96236572]
[1644674953965,0.1723,2902.3,2901.3,1.96236572]
[1644674954168,0.00820606,2901.7,2901.3,1.96236572]
[1644674955321,0.00819406,2901.6,2901.3,2.96236572]
[1644674955515,0.00819406,2901.6,2901.3,3.13466572]
[1644674956419,3.95878016,2902.3,2901.3,0.13838005]
[1644674956615,0.00819131,2901.6,2901.3,0.13838005]
[1644674957618,0.1723,2902.2,2901.3,0.13838005]
[1644674957825,0.00819131,2901.6,2901.3,0.13838005]
[1644674958662,3.73431754,2902.3,2901.3,0.13838005]
[1644674958863,1.46681946,2902.2,2901.3,0.13838005]
[1644674959062,0.00819307,2901.6,2901.3,0.13838005]
[1644674959873,0.1723,2902.1,2901.3,0.13838005]
[1644674960067,0.1723,2902.1,2901.4,0.491]
[1644674960272,0.00819366,2901.6,2901.4,0.491]
[1644674960472,0.00819366,2901.6,2901.4,0.791]
[1644674960868,0.00819366,2901.6,2901.4,1.091]
[1644674961067,0.1723,2902.1,2901.4,1.091]
[1644674961268,0.72813707,2902.4,2901.9,0.60297604]
[1644674961868,0.72813707,2902.4,2901.8,0.491]
[1644674962512,0.00819283,2902.3,2901.8,0.491]
[1644674963120,0.00819283,2902.3,2901.8,1.08870457]
[1644674963316,0.00819283,2902.3,2901.8,0.491]
[1644674963516,0.72813707,2902.4,2901.8,0.491]
[1644674963721,1.46670188,2902.3,2901.4,0.491]
[1644674963917,0.00819895,2902.2,2901.4,0.6633]
[1644674964417,0.00819895,2902.2,2901.5,0.71553895]
[1644674964816,0.72813707,2902.4,2901.5,0.71553895]
[1644674965017,0.00819915,2901.9,2901.5,0.71553895]
[1644674965821,0.00819915,2901.9,2901.4,0.1723]
[1644674966069,3.86969899,2902.3,2900.7,0.491]
[1644674966070,1.63922853,2901.8,2900.7,0.491]
[1644674966268,1.63922853,2901.8,2900.6,3.273]
[1644674966269,1.46692853,2901.7,2900.6,3.273]
[1644674966469,0.00585455,2901.8,2900.6,3.273]
[1644674966670,0.00585455,2901.8,2900.6,3.764]
[1644674966871,0.67670155,2901.8,2900.9,0.54506186]
[1644674967075,0.670847,2901.8,2900.9,0.54506186]
[1644674967270,1.46694235,2901.7,2900.9,0.54506186]
[1644674967572,0.00584799,2901.3,2901.0,0.1723]
[1644674968570,0.00584799,2901.5,2901.0,0.1723]
[1644674969370,0.00584799,2901.5,2900.9,0.54506186]
[1644674969713,0.4223,2902.0,2900.9,0.54506186]
[1644674969919,0.00866807,2901.4,2900.9,0.54506186]
[1644674970723,3.71613924,2901.9,2900.9,0.54506186]
[1644674970917,1.46693381,2901.8,2901.0,0.1723]
[1644674971117,0.00888202,2901.3,2901.0,0.1723]
[1644674971316,0.00888202,2901.3,2900.9,0.54506186]
[1644674971919,3.86615479,2901.9,2900.9,0.54506186]
[1644674972119,1.46694872,2901.8,2900.9,0.54506186]
[1644674972318,0.00888192,2901.3,2900.9,0.54506186]
[1644674973249,3.67500897,2901.9,2900.3,0.29078156]
[1644674973250,0.86367475,2901.5,2900.3,0.29078156]
[1644674973477,0.1723,2901.2,2900.3,0.01147846]
[1644674973664,1.46712322,2901.1,2900.3,0.008885]
[1644674973865,0.1723,2901.2,2900.3,0.008885]
[1644674974064,0.1723,2901.2,2900.3,0.62613079]
[1644674974065,1.97540598,2901.1,2900.3,0.62613079]
[1644674974266,0.50825038,2901.1,2900.3,0.62613079]
[1644674974466,0.1723,2901.2,2900.3,0.61724579]
[1644674974665,0.1723,2901.2,2900.3,0.62588609]
[1644674974666,1.46716722,2901.1,2900.3,0.62588609]
[1644674974869,1.46716722,2901.1,2900.3,0.0086403]
[1644674975269,0.1723,2901.2,2900.3,0.0086403]
[1644674975469,0.1723,2901.2,2900.2,0.491]
[1644674975673,0.17111208,2901.2,2900.3,0.491]
[1644674975874,0.17111208,2901.2,2900.4,0.491]
[1644674976070,0.17111208,2901.2,2900.9,0.61322061]
[1644674976269,0.17111208,2901.2,2901.0,0.491]
[1644674976469,0.17111208,2901.2,2901.0,3.95190863]
[1644674976669,0.17111208,2901.2,2901.0,0.491]
[1644674978426,0.54912679,2902.1,2900.6,1.1756]
[1644674978427,0.00865442,2901.3,2900.6,1.1756]
[1644674979015,0.00865442,2901.3,2900.7,0.491]
[1644674979215,0.1723,2902.0,2900.7,0.491]
[1644674979417,0.00865412,2901.3,2901.1,0.66526844]
[1644674980421,0.1723,2902.0,2901.1,0.66526844]
[1644674980620,0.00865462,2901.3,2901.1,0.66526844]
[1644674981467,0.1723,2902.0,2901.1,0.66526844]
[1644674981667,1.46696856,2901.9,2901.1,0.66526844]
[1644674981867,0.00865351,2901.3,2901.1,0.66526844]
[1644674982765,0.5163549,2902.0,2901.1,0.66526844]
[1644674982966,0.00865351,2901.3,2901.1,0.66526844]
[1644674984092,0.5163549,2902.0,2901.1,0.66526844]
[1644674984271,0.00865351,2901.3,2901.1,0.66526844]
[1644674984474,0.00865351,2901.3,2901.2,0.6633]
[1644674985324,1.4734,2902.2,2901.2,0.6633]
[1644674985528,0.00865352,2901.4,2901.2,0.9633]
[1644674985926,0.00865352,2901.4,2901.2,1.2633]
[1644674986332,0.72813707,2902.4,2901.2,2.2633]
[1644674986625,0.00865347,2901.4,2901.3,3.68860424]
[1644674986825,0.00865347,2901.4,2901.3,1.491]
[1644674987226,0.00865347,2901.4,2901.3,0.791]
[1644674987626,0.72813707,2902.4,2901.3,0.791]
[1644674987825,0.00865343,2901.5,2901.4,3.90295635]
[1644674988025,0.00865343,2901.5,2901.4,0.9633]
[1644674988227,0.00865343,2901.5,2901.4,1.9633]
[1644674988475,0.00865343,2901.5,2901.4,0.9633]
[1644674988668,0.72813707,2902.4,2901.4,0.9633]
[1644674988874,1.46669612,2902.3,2902.0,0.60585986]
[1644674989069,1.46669612,2902.3,2902.0,1.09685986]
[1644674990274,1.47534876,2902.3,2902.0,1.09685986]
[1644674990475,1.46669612,2902.2,2902.0,1.09685986]
[1644674991076,1.46669612,2902.2,2902.0,0.491]
[1644674991482,1.46669612,2902.1,2902.0,0.491]
[1644674992718,0.00865269,2902.2,2902.0,0.491]
[1644674992918,1.46669612,2902.1,2902.0,0.491]
[1644674993719,1.46669612,2902.3,2902.0,0.491]
[1644674993919,0.00865269,2902.2,2902.0,0.491]
[1644674994124,1.46669612,2902.1,2902.0,0.491]
[1644674994922,1.46669612,2902.1,2901.6,1.06090864]
[1644674995122,1.46669612,2902.0,2901.6,1.06090864]
[1644674995324,0.00865269,2902.2,2901.6,1.36090864]
[1644674995621,1.46665522,2902.1,2901.7,0.3]
[1644674995823,1.46665522,2902.1,2901.6,1.06090864]
[1644674996267,1.47514581,2902.0,2901.6,1.06090864]
[1644674996468,0.00849059,2902.0,2901.6,1.06090864]
[1644674997270,0.72813707,2902.4,2902.1,0.69942597]
[1644674997472,1.46665,2902.3,2902.1,0.69942597]
[1644674998673,1.47514031,2902.3,2902.1,0.69942597]
[1644674998874,1.46665,2902.2,2902.1,0.69942597]
[1644674999475,1.46575246,2902.2,2902.1,0.69942597]
[1644674999922,0.00815119,2902.3,2902.1,0.69942597]
[1644675000722,0.72813707,2902.4,2902.1,0.69942597]
[1644675001121,0.00815115,2902.3,2902.1,0.69942597]
[1644675002422,0.72813707,2902.4,2902.1,0.69942597]
[1644675002622,0.68628822,2902.4,2902.1,0.69942597]
[1644675005070,0.68628822,2902.4,2902.2,0.01225521]
[1644675007076,0.69555995,2902.4,2902.2,0.01225521]
[1644675008122,0.68628822,2902.4,2902.2,0.01225521]
[1644675008327,0.69555995,2902.4,2902.2,0.53435836]
[1644675009225,0.68628822,2902.4,2902.2,0.53435836]
[1644675009423,0.69555995,2902.4,2902.2,0.53435836]
[1644675010425,0.68628822,2902.4,2902.2,0.53435836]
[1644675010625,0.69555995,2902.4,2902.2,0.53435836]
[1644675011570,0.68628822,2902.4,2902.2,0.53435836]
[1644675011969,0.69555995,2902.4,2902.2,0.53435836]
[1644675012369,0.69555995,2902.4,2902.3,3.55809499]
[1644675012575,0.69555995,2902.4,2902.3,0.491]
[1644675012771,0.68628822,2902.4,2902.3,1.491]
[1644675012969,0.69555995,2902.4,2902.3,0.491]
[1644675013367,0.69555995,2902.4,2902.3,3.991]
[1644675013570,0.69555995,2902.4,2902.3,0.491]
[1644675013771,0.001,2903.0,2902.3,0.6631]
[1644675013980,0.001,2903.0,2902.4,0.1721]
[1644675014172,0.001,2903.0,2902.5,0.491]
[1644675014828,0.001,2903.0,2902.6,3.95732059]
[1644675015024,0.001,2903.0,2902.7,0.491]
[1644675015226,0.001,2903.7,2902.8,3.5283035]
[1644675015423,0.17599645,2903.8,2902.9,1.491]
[1644675015424,0.03707961,2903.3,2902.9,1.491]
[1644675016223,0.03707961,2903.3,2903.1,0.51984757]
[1644675016424,0.00489645,2904.0,2903.2,0.491]
[1644675016626,0.00489645,2904.0,2903.7,0.58472647]
[1644675016825,0.001,2904.0,2903.7,0.58472647]
[1644675017026,0.90955325,2903.3,2903.2,0.491]
[1644675017226,0.64547811,2904.2,2903.3,3.25]
[1644675017227,0.001,2904.1,2903.3,3.25]
[1644675017433,0.00389645,2904.2,2903.4,5.2067826]
[1644675017434,0.00489645,2904.2,2903.4,5.2067826]
[1644675017626,0.00389645,2904.3,2903.4,5.2067826]
[1644675017827,0.00389645,2904.3,2903.4,5.5067826]
[1644675018025,0.00389645,2904.3,2903.5,0.65057753]
[1644675018026,0.00644477,2904.0,2903.5,0.65057753]
[1644675018225,0.00644477,2904.0,2903.6,4.61538245]
[1644675018479,0.00644477,2904.0,2903.7,1.0]
[1644675018668,0.00644477,2904.0,2903.8,4.00292098]
[1644675018870,0.17599645,2904.8,2903.9,3.48771824]
[1644675019069,0.02576672,2904.3,2904.0,0.491]
[1644675019269,0.02576672,2904.3,2904.1,3.58573662]
[1644675019479,0.02576672,2904.3,2904.2,0.491]
[1644675019672,0.02576672,2904.3,2904.2,5.29164861]
[1644675019875,0.02576672,2904.3,2904.2,5.99675118]
[1644675020086,0.00489645,2905.1,2904.2,5.99675118]
[1644675020277,0.00644264,2904.5,2904.2,1.36820257]
[1644675020479,0.00644264,2904.5,2904.2,0.87720257]
[1644675020780,1.46568694,2904.4,2904.2,0.87570482]
[1644675020977,0.001,2904.3,2904.2,0.87570482]
[1644675021179,0.00389645,2904.9,2904.2,0.87570482]
[1644675021379,0.00389645,2904.9,2904.7,0.50938085]
[1644675021581,0.001,2904.9,2904.7,0.50938085]
[1644675022621,0.0102769,2904.9,2904.7,0.50938085]
[1644675023018,0.0092769,2904.9,2904.7,0.50938085]
[1644675023620,0.00489645,2905.2,2904.7,0.50938085]
[1644675023820,0.00644417,2904.9,2904.7,0.50938085]
[1644675024426,0.00644417,2904.9,2904.8,0.491]